bitfinex-derivatives/quotes_ETHF0:USTF0_20260120
["timestamp","ask_amount","ask_price","bid_price","bid_amount"]
[1768884833570,1.03588977,3173.3,3172.1,2.777]
[1768884834960,1.03588977,3173.3,3172.1,4.15275808]
[1768884835360,1.03588977,3173.3,3171.9,0.00395448]
[1768884835361,1.03588977,3173.3,3172.2,1.37575808]
[1768884836766,1.03588977,3173.3,3172.2,4.15075808]
[1768884837165,1.03588977,3173.3,3172.3,1.37575808]
[1768884838665,0.00236978,3173.4,3172.3,1.37575808]
[1768884839864,1.04284958,3173.3,3172.4,2.773]
[1768884840068,0.00236978,3173.4,3172.4,2.773]
[1768884840269,1.04285434,3173.3,3172.3,1.37575808]
[1768884840470,1.04458085,3173.2,3172.2,2.773]
[1768884840670,1.26391411,3173.4,3172.2,2.773]
[1768884840867,1.04459415,3173.3,3172.2,4.14875808]
[1768884841076,2.14847848,3173.3,3172.2,4.14875808]
[1768884841266,1.10388433,3173.1,3172.2,1.37575808]
[1768884842277,1.10388433,3173.0,3172.2,1.37575808]
[1768884842777,2.14847848,3172.9,3172.2,1.37575808]
[1768884842978,1.04459415,3172.8,3172.2,1.37575808]
[1768884843176,1.04459415,3172.7,3172.2,1.37575808]
[1768884843479,1.04459415,3172.6,3172.2,1.37575808]
[1768884843671,1.04459415,3172.5,3172.2,1.37575808]
[1768884843874,1.04459415,3172.4,3172.2,1.37575808]
[1768884844077,1.10388433,3172.9,3172.2,1.37575808]
[1768884844579,4.96488433,3173.0,3172.2,1.37575808]
[1768884844779,3.861,3173.0,3172.2,1.37575808]
[1768884845486,3.861,3173.0,3172.4,1.37575808]
[1768884846468,1.10388433,3173.0,3171.9,1.37971256]
[1768884846683,1.10388433,3172.9,3171.9,1.37971256]
[1768884847276,1.10388433,3173.0,3171.9,1.37971256]
[1768884847581,1.10388433,3173.2,3171.9,1.37971256]
[1768884847772,1.10388433,3173.3,3171.9,1.37971256]
[1768884847979,1.10388433,3173.3,3171.4,1.37575808]
[1768884847980,1.10388433,3173.1,3171.4,1.37575808]
[1768884848175,1.10388433,3172.4,3171.4,1.37575808]
[1768884849179,1.10388433,3172.4,3171.4,1.37821363]
[1768884850986,1.10388433,3172.3,3171.1,1.37575808]
[1768884851683,1.10388433,3172.4,3171.1,1.37575808]
[1768884851882,1.10388433,3172.4,3171.1,1.37918162]
[1768884852077,1.10388433,3172.5,3171.1,1.37918162]
[1768884852884,1.10388433,3172.6,3171.1,1.37918162]
[1768884854777,1.10388433,3172.5,3171.1,1.37918162]
[1768884855298,1.10388433,3172.6,3171.1,1.37918162]
[1768884855786,1.10388433,3172.7,3171.1,1.37918162]
[1768884855990,0.96527925,3172.6,3171.1,1.37918162]
[1768884856176,0.96527925,3172.5,3171.1,1.37918162]
[1768884856375,1.10388433,3172.8,3171.1,1.37918162]
[1768884856376,0.96527925,3172.4,3171.1,1.37918162]
[1768884856580,1.10388433,3172.8,3171.1,1.37918162]
[1768884856776,1.10388433,3172.9,3171.3,1.37575808]
[1768884857082,0.96529044,3172.8,3171.3,1.37575808]
[1768884857381,0.96529044,3172.7,3171.3,1.37575808]
[1768884857582,0.96529044,3172.6,3171.5,1.37575808]
[1768884857778,0.96529044,3172.5,3171.6,1.37575808]
[1768884857982,0.96110625,3172.4,3171.6,1.37575808]
[1768884858185,1.10388433,3172.9,3171.6,1.37575808]
[1768884858784,1.10388433,3172.9,3171.7,2.797]
[1768884859481,1.10388433,3172.9,3171.7,4.17275808]
[1768884859990,1.10388433,3172.9,3171.8,1.37575808]
[1768884861391,2.06502013,3172.9,3171.8,1.37575808]
[1768884861692,0.9611358,3172.8,3171.8,1.37575808]
[1768884861889,0.9611358,3172.7,3171.8,1.37575808]
[1768884862090,1.10388433,3173.0,3171.8,1.37575808]
[1768884863795,1.10388433,3173.1,3171.8,1.37575808]
[1768884863984,3.861,3173.0,3172.0,0.94226475]
[1768884864494,3.861,3173.0,3172.1,2.807]
[1768884866494,3.861,3173.0,3171.6,0.94226475]
[1768884866696,3.861,3173.0,3172.1,2.806]
[1768884867998,1.10388433,3173.1,3172.1,2.806]
[1768884869084,1.67663609,3173.3,3172.1,2.806]
[1768884869085,1.10388433,3173.2,3172.2,0.94226475]
[1768884869298,1.10388433,3173.3,3172.2,0.94226475]
[1768884869499,1.10625411,3173.4,3172.2,0.94226475]
[1768884871396,0.00236978,3173.4,3172.2,0.94226475]
[1768884871600,0.00236978,3173.4,3172.3,2.804]
[1768884871797,0.00236978,3173.4,3172.2,0.94226475]
[1768884872000,0.00236978,3173.4,3172.2,3.74526475]
[1768884872199,0.00236978,3173.4,3172.3,0.94226475]
[1768884875495,1.10388433,3174.3,3172.3,0.94226475]
[1768884876002,0.94901198,3174.2,3172.6,0.94226475]
[1768884876300,0.94901198,3174.1,3172.6,0.94226475]
[1768884876503,0.00315626,3174.1,3172.6,0.94226475]
[1768884878301,1.10388433,3174.8,3172.6,0.94226475]
[1768884878507,0.94776648,3174.7,3173.1,0.94226475]
[1768884878691,0.94776648,3174.6,3173.3,0.94226475]
[1768884878899,1.10388433,3175.2,3173.3,0.94226475]
[1768884879406,0.94788564,3175.1,3173.3,0.94226475]
[1768884879600,0.00297401,3175.2,3173.3,0.94226475]
[1768884879601,0.94788564,3175.0,3173.3,0.94226475]
[1768884879802,0.94788564,3174.9,3173.3,0.94226475]
[1768884879997,0.00297401,3175.2,3173.3,0.94226475]
[1768884880192,0.94737872,3175.1,3173.3,0.94226475]
[1768884880405,0.00297401,3175.2,3173.3,0.94226475]
[1768884880406,0.94737872,3175.0,3173.3,0.94226475]
[1768884880606,0.00297401,3175.2,3173.3,0.94226475]
[1768884880804,0.94683227,3175.1,3173.3,0.94226475]
[1768884880997,0.94683227,3175.0,3173.4,2.806]
[1768884881193,0.00297401,3175.2,3173.4,2.80844509]
[1768884881403,0.94651565,3175.1,3173.4,2.80844509]
[1768884881602,0.94651565,3175.0,3173.4,2.80844509]
[1768884881907,0.00297401,3175.2,3173.4,2.80844509]
[1768884882094,1.10407672,3175.1,3173.4,0.00244509]
[1768884882298,0.94650672,3175.0,3173.4,0.00244509]
[1768884882498,0.15759,3174.7,3173.4,0.00244509]
[1768884882798,0.94650672,3174.6,3173.4,0.00244509]
[1768884882999,0.94650672,3174.5,3173.4,0.00244509]
[1768884883203,0.15759,3174.7,3173.4,0.00244509]
[1768884883501,0.94602185,3174.6,3173.4,0.00244509]
[1768884883698,0.94602185,3174.5,3173.4,0.00244509]
[1768884883898,0.94603313,3174.4,3173.4,0.00244509]
[1768884884107,0.15759,3174.7,3173.4,0.00244509]
[1768884884306,0.94601785,3174.6,3173.4,0.00244509]
[1768884884507,0.94601785,3174.5,3173.4,0.00244509]
[1768884884706,0.94601785,3174.4,3173.4,0.00244509]
[1768884884897,0.15759,3174.7,3173.4,0.00244509]
[1768884885098,0.94606571,3174.6,3173.4,0.00244509]
[1768884885298,0.94606571,3174.5,3173.4,0.00244509]
[1768884885498,0.15759,3174.7,3173.4,0.80306065]
[1768884885694,0.94622296,3174.6,3173.4,0.80306065]
[1768884885902,1.10388433,3175.1,3173.4,0.80306065]
[1768884886394,0.94094529,3175.0,3173.4,0.80306065]
[1768884886596,1.09852529,3174.9,3173.4,0.80306065]
[1768884886911,0.94094529,3174.8,3173.4,0.80306065]
[1768884887112,0.94094529,3174.7,3173.4,0.80306065]
[1768884887401,0.15758,3174.9,3173.4,0.80306065]
[1768884887610,0.94082383,3174.8,3173.4,0.80306065]
[1768884887805,0.94082383,3174.7,3173.4,0.80306065]
[1768884888001,1.10685834,3175.2,3173.4,0.00244509]
[1768884888408,1.10388433,3175.0,3173.4,0.00244509]
[1768884888802,2.04464677,3175.0,3173.4,0.00244509]
[1768884889003,0.94076244,3174.9,3173.4,0.00244509]
[1768884889201,0.94076244,3174.8,3173.4,0.00244509]
[1768884889402,0.94076244,3174.7,3173.4,0.00244509]
[1768884889606,0.94076244,3174.6,3173.4,0.00244509]
[1768884891916,0.94076244,3174.6,3173.4,0.80306065]
[1768884893308,0.15759,3174.7,3173.4,0.80306065]
[1768884894306,0.94136179,3174.6,3173.4,0.80306065]
[1768884894502,0.15759,3174.7,3173.4,0.80306065]
[1768884894711,0.94139194,3174.6,3173.4,0.80306065]
[1768884894916,0.15759,3174.7,3173.4,0.80306065]
[1768884895115,0.94139306,3174.6,3173.4,0.80306065]
[1768884895319,0.15759,3174.7,3173.4,0.80306065]
[1768884895615,0.94159896,3174.6,3173.4,0.80306065]
[1768884895815,0.15759,3174.7,3173.4,0.80306065]
[1768884896009,0.94159128,3174.6,3173.4,0.80306065]
[1768884896211,0.15759,3174.7,3173.4,0.80306065]
[1768884896517,0.94184898,3174.6,3174.0,0.04056637]
[1768884896718,0.15759,3174.7,3174.0,0.04056637]
[1768884896910,0.94185883,3174.6,3174.3,0.04319679]
[1768884897217,1.10388433,3175.1,3173.7,0.71960751]
[1768884897417,0.9421741,3175.0,3173.7,0.71960751]
[1768884897618,0.9421741,3174.9,3173.7,0.71960751]
[1768884897815,0.9421741,3174.8,3173.7,0.71960751]
[1768884898014,1.10685834,3175.2,3173.7,0.71960751]
[1768884898314,0.94232993,3175.1,3173.7,0.71960751]
[1768884898517,0.94232993,3175.0,3173.7,0.71960751]
[1768884898818,0.94232993,3174.9,3173.7,0.71960751]
[1768884899018,0.94232993,3174.8,3173.7,0.71960751]
[1768884899316,0.94232993,3174.7,3173.4,0.00244509]
[1768884899506,0.15758,3174.9,3173.4,0.00244509]
[1768884899707,0.94292468,3174.8,3173.4,0.00244509]
[1768884899909,0.94292468,3174.7,3173.4,0.00244509]
[1768884900111,0.94292468,3174.6,3173.4,0.00244509]
[1768884900306,0.9431664,3174.5,3173.4,0.00244509]
[1768884900506,0.15759,3174.8,3173.4,0.00244509]
[1768884900711,0.94316928,3174.7,3173.4,0.00244509]
[1768884901024,0.94316928,3174.6,3173.4,0.00244509]
[1768884901220,0.94316928,3174.5,3173.4,0.00244509]
[1768884901520,0.15759,3174.8,3173.4,0.00244509]
[1768884901721,0.94359522,3174.7,3173.4,0.7220526]
[1768884901920,0.94359522,3174.6,3173.4,0.7220526]
[1768884902116,4.80459522,3174.5,3173.4,0.7220526]
[1768884902420,0.94409389,3174.4,3173.4,0.00244509]
[1768884902621,3.861,3174.5,3173.9,0.03808681]
[1768884902821,0.9440889,3174.4,3173.9,0.03808681]
[1768884903014,3.861,3174.5,3173.4,0.00244509]
[1768884903214,0.94412924,3174.4,3174.1,0.04319679]
[1768884903422,3.861,3174.5,3173.4,0.00244509]
[1768884903622,0.94452804,3174.4,3173.4,0.00244509]
[1768884903822,3.861,3174.5,3173.4,0.7220526]
[1768884904129,0.94452611,3174.4,3173.4,0.7220526]
[1768884904322,3.861,3174.5,3173.4,0.7220526]
[1768884904522,0.94537778,3174.4,3173.4,0.7220526]
[1768884904724,3.861,3174.5,3173.4,0.7220526]
[1768884905021,0.94543373,3174.4,3173.4,0.7220526]
[1768884905225,3.861,3174.5,3173.4,0.7220526]
[1768884906517,0.42276461,3174.5,3173.4,0.7220526]
[1768884906717,0.42276461,3174.5,3173.4,0.00244509]
[1768884908011,0.42276461,3174.5,3173.5,40.8]
[1768884908213,0.73418006,3175.2,3173.5,40.8]
[1768884908522,0.93748672,3175.1,3173.5,40.8]
[1768884908818,0.73418006,3175.2,3174.3,0.03605495]
[1768884908819,0.93748672,3175.0,3174.3,0.03605495]
[1768884909021,0.93748672,3174.9,3174.3,0.03605495]
[1768884909216,0.73418006,3175.2,3174.3,0.03605495]
[1768884909420,0.73120605,3175.0,3174.6,0.04319679]
[1768884909623,0.93736801,3174.9,3174.6,0.04319679]
[1768884909825,1.15397066,3175.0,3174.6,0.04319679]
[1768884910014,0.93738187,3174.9,3174.6,0.04319679]
[1768884910216,1.15397066,3175.0,3173.6,5.943]
[1768884910417,0.73120605,3175.0,3173.6,5.943]
[1768884913421,0.73120605,3175.0,3173.7,40.8]
[1768884914126,0.73120605,3174.5,3173.4,0.00244509]
[1768884915328,0.73120605,3174.0,3173.4,0.00244509]
[1768884915824,0.73120605,3173.8,3173.4,0.00244509]
[1768884916226,1.15397066,3173.8,3173.4,0.00244509]
[1768884916421,0.73120605,3173.7,3173.4,0.00244509]
[1768884916617,0.73120605,3173.7,3173.2,2.799]
[1768884917528,0.73120605,3173.7,3173.2,2.80233618]
[1768884917824,0.73120605,3173.6,3172.4,40.8]
[1768884918031,0.73120605,3173.6,3172.5,5.955]
[1768884918916,0.73120605,3173.6,3172.5,0.00376993]
[1768884919122,0.73120605,3173.6,3172.6,2.806]
[1768884919623,1.15397066,3173.5,3172.6,2.806]
[1768884919926,0.73120605,3173.4,3172.6,2.806]
[1768884921025,0.73120605,3173.3,3172.6,2.812]
[1768884921316,0.73120605,3173.2,3172.6,2.812]
[1768884921722,0.73120605,3173.1,3172.5,2.81576993]
[1768884922513,0.73120605,3173.1,3172.5,0.00376993]
[1768884922731,0.73120605,3173.1,3172.4,2.815]
[1768884922732,0.73120605,3173.0,3172.4,2.815]
[1768884923121,0.57668487,3172.9,3172.4,2.815]
[1768884923325,0.99944948,3172.9,3172.4,2.815]
[1768884923521,0.57668487,3172.8,3172.4,2.815]
[1768884923732,0.57668487,3172.7,3172.4,2.81811647]
[1768884924028,0.42276461,3172.5,3171.6,10.207]
[1768884924229,0.57668487,3172.7,3171.7,43.619]
[1768884925227,0.57668487,3172.7,3171.7,43.62303648]
[1768884927224,0.57668487,3172.7,3171.7,40.80403648]
[1768884927521,0.57668487,3172.7,3171.8,2.829]
[1768884929832,0.0038152,3172.8,3171.8,2.829]
[1768884930736,0.57668487,3173.2,3171.8,2.829]
[1768884931731,0.58071893,3173.2,3171.8,2.829]
[1768884932330,0.57668487,3173.6,3171.9,4.15151868]
[1768884933436,0.57989778,3173.6,3171.9,4.15151868]
[1768884933740,0.57989778,3173.6,3171.9,4.30924868]
[1768884934733,0.15762,3174.3,3172.2,0.3252855]
[1768884934931,1.10388433,3174.8,3172.4,0.3252855]
[1768884935128,0.42276461,3174.7,3172.4,0.3252855]
[1768884935328,1.35443203,3174.6,3172.4,0.3252855]
[1768884935536,0.93166742,3174.5,3172.5,0.1577]
[1768884935735,0.15758,3175.0,3172.5,4.29726496]
[1768884935936,0.00384912,3174.5,3172.5,4.29726496]
[1768884936137,0.00384912,3174.5,3172.6,40.8]
[1768884936334,0.00384912,3174.5,3172.7,3.153]
[1768884936736,0.42661373,3174.5,3172.7,3.153]
[1768884936935,0.57668487,3174.4,3173.2,1.05984142]
[1768884937130,0.57668487,3174.4,3173.3,2.853]
[1768884937325,0.42276461,3174.1,3173.3,2.853]
[1768884937630,0.42276461,3174.2,3173.3,2.853]
[1768884938033,0.42276461,3174.1,3173.3,2.853]
[1768884938231,0.42276461,3174.2,3173.3,2.853]
[1768884938630,0.42276461,3174.1,3173.3,2.853]
[1768884938831,0.42276461,3174.2,3173.3,2.853]
[1768884939233,0.42276461,3174.1,3173.3,2.853]
[1768884939431,0.42276461,3174.2,3173.3,2.853]
[1768884939736,0.42276461,3174.3,3173.3,2.853]
[1768884940241,0.00384912,3174.5,3173.3,2.853]
[1768884940242,0.42276461,3174.2,3173.3,2.853]
[1768884940448,0.00384912,3174.5,3173.3,2.853]
[1768884940940,0.58053399,3174.5,3173.3,2.853]
[1768884943144,0.58053399,3174.5,3173.3,3.91284142]
[1768884946346,0.58053399,3174.5,3172.4,2.866]
[1768884946347,0.4846914,3173.9,3172.4,2.866]
[1768884946538,1.21747142,3174.0,3172.4,2.866]
[1768884946539,0.4846914,3173.7,3172.4,2.866]
[1768884949944,0.4846914,3174.4,3172.4,2.866]
[1768884950148,0.4846914,3174.2,3172.4,2.866]
[1768884950340,0.00384912,3174.5,3173.1,1.52686585]
[1768884950537,0.4846914,3175.1,3173.2,6.20801209]
[1768884950741,0.4846914,3175.1,3173.2,10.29412797]
[1768884951351,0.4846914,3175.1,3173.2,10.45179797]
[1768884951547,0.48743415,3175.1,3173.2,10.45179797]
[1768884951752,0.48743415,3175.1,3173.3,0.33153222]
[1768884952054,0.48743415,3175.1,3173.4,4.09236629]
[1768884952259,0.48743415,3175.1,3173.5,40.8]
[1768884954859,0.48743415,3175.1,3173.8,1.52523762]
[1768884955058,0.48743415,3175.1,3173.9,2.878]
[1768884955253,0.48743415,3175.1,3174.0,6.032]
[1768884955458,0.48743415,3175.1,3174.0,0.0039276]
[1768884955769,0.48743415,3175.1,3174.1,2.879]
[1768884959660,0.48743415,3175.1,3174.2,2.885]
[1768884961064,0.15755,3175.6,3174.2,2.885]
[1768884961367,0.93222754,3175.5,3174.2,2.885]
[1768884961667,0.15755,3175.6,3174.2,2.885]
[1768884961863,0.00293093,3175.6,3174.2,2.885]
[1768884963766,0.00293093,3175.6,3174.4,1.52523762]
[1768884964068,0.00293093,3175.6,3174.2,2.885]
[1768884964663,0.00293093,3175.6,3174.2,3.35696278]
[1768884964869,0.00293093,3175.6,3174.3,0.47196278]
[1768884965677,0.45202487,3176.2,3174.6,1.52523762]
[1768884965968,0.45202487,3176.2,3174.6,1.9972004]
[1768884966470,0.45202487,3176.2,3174.7,6.037]
[1768884966673,0.45480084,3176.2,3174.7,6.037]
[1768884967068,0.00277597,3176.2,3174.8,40.8]
[1768884969571,0.00277597,3176.2,3174.8,41.27196278]
[1768884969776,0.00277597,3176.2,3175.1,1.52523762]
[1768884970568,4.55468236,3176.6,3175.1,1.9972004]
[1768884970768,0.45202487,3177.1,3175.2,0.47196278]
[1768884970967,0.45202487,3176.9,3175.2,0.47196278]
[1768884971176,0.93120933,3176.8,3175.2,0.47196278]
[1768884971377,0.45202487,3176.9,3175.2,0.47196278]
[1768884971576,0.45508346,3176.9,3175.2,0.47196278]
[1768884972977,0.45508346,3176.9,3174.8,42.9547804]
[1768884973178,0.45508346,3176.9,3174.9,6.049]
[1768884973377,0.45508346,3176.9,3174.9,10.17668394]
[1768884973768,0.45508346,3176.9,3174.9,10.64864672]
[1768884975173,0.45508346,3176.9,3175.3,1.52523762]
[1768884978273,2.498,3176.8,3175.3,1.52523762]
[1768884978876,2.498,3176.8,3175.8,1.05834339]
[1768884979076,2.498,3176.8,3175.9,2.911]
[1768884980382,2.498,3176.8,3176.0,2.91]
[1768884980777,2.498,3176.8,3176.0,3.96834339]
[1768884981179,2.498,3176.8,3176.1,1.05834339]
[1768884981786,2.498,3176.8,3176.0,3.96834339]
[1768884983287,2.498,3176.8,3176.0,2.91]
[1768884983588,2.498,3176.8,3176.0,3.96834339]
[1768884984186,0.45508346,3176.9,3176.0,3.96834339]
[1768884986184,0.00305859,3176.9,3176.0,3.96834339]
[1768884986486,0.00305859,3176.9,3176.4,1.05834339]
[1768884986686,2.498,3177.1,3176.4,1.06136696]
[1768884986887,2.498,3177.1,3176.6,1.05834339]
[1768884987085,2.498,3177.5,3176.6,1.05834339]
[1768884987382,0.93111198,3177.4,3176.6,1.05834339]
[1768884987587,0.93111198,3177.3,3176.6,1.05834339]
[1768884987887,0.93111198,3177.2,3176.4,1.06136696]
[1768884988189,0.9313413,3177.1,3176.4,1.06136696]
[1768884988386,0.00376273,3177.4,3176.4,1.06136696]
[1768884988588,0.93129201,3177.3,3176.4,1.06136696]
[1768884988778,0.93129201,3177.2,3176.4,1.06136696]
[1768884988978,0.00376273,3177.4,3176.4,1.06136696]
[1768884989287,0.93129122,3177.3,3176.4,1.06136696]
[1768884989488,0.93129122,3177.2,3176.4,1.06136696]
[1768884989683,0.93129122,3177.1,3176.4,1.06136696]
[1768884989982,2.498,3177.3,3176.4,1.06136696]
[1768884990287,0.93161909,3177.2,3176.4,1.06136696]
[1768884990590,0.93161909,3177.1,3176.4,1.06136696]
[1768884990790,2.498,3177.3,3176.4,0.00302357]
[1768884990991,0.93159447,3177.2,3176.4,0.00302357]
[1768884991291,0.93159447,3177.1,3176.4,0.00302357]
[1768884991491,2.498,3177.3,3176.4,0.00302357]
[1768884991687,0.93202783,3177.2,3176.4,0.00302357]
[1768884991891,0.93202783,3177.1,3176.4,0.00302357]
[1768884992079,0.35508209,3177.2,3176.4,0.00302357]
[1768884992283,0.93201228,3177.1,3176.4,0.00302357]
[1768884992480,1.28709437,3177.0,3176.4,0.00302357]
[1768884992694,0.35508209,3177.0,3176.4,0.00302357]
[1768884993483,1.28746297,3176.9,3176.4,0.00302357]
[1768884993681,0.35508209,3176.9,3176.4,0.00302357]
[1768884996192,1.45896642,3177.3,3176.4,0.00302357]
[1768884996497,0.93357462,3177.2,3176.4,0.00302357]
[1768884996693,0.93357462,3177.1,3176.5,1.05834339]
[1768884996891,0.35884482,3177.4,3176.4,0.00302357]
[1768884997091,0.35508209,3177.2,3176.4,0.00302357]
[1768884997400,0.92978647,3177.1,3176.4,0.00302357]
[1768884997597,0.92978647,3177.0,3176.4,0.00302357]
[1768884997902,0.35508209,3177.1,3176.4,0.00302357]
[1768884998098,0.9299536,3177.0,3176.4,0.00302357]
[1768884998299,0.35508209,3177.1,3176.4,0.00302357]
[1768884998496,0.93023412,3177.0,3176.4,0.00302357]
[1768884998702,0.35508209,3177.1,3176.4,0.00302357]
[1768884998895,0.93023394,3177.0,3176.4,0.00302357]
[1768884999204,0.35508209,3177.1,3176.4,0.00302357]
[1768884999396,0.93022874,3177.0,3176.4,0.00302357]
[1768884999596,0.93022874,3176.9,3176.4,0.00302357]
[1768884999797,0.35508209,3177.1,3176.4,0.00302357]
[1768884999996,0.93050033,3177.0,3176.4,0.00302357]
[1768885000197,0.93050033,3176.9,3176.4,0.00302357]
[1768885000398,0.35508209,3177.1,3176.4,0.00302357]
[1768885000599,0.35508209,3176.9,3175.8,3.95534339]
[1768885001598,0.35508209,3176.9,3175.8,3.95881032]
[1768885002403,0.35508209,3176.9,3175.8,2.90046693]
[1768885002707,0.35508209,3176.9,3175.8,1.06181032]
[1768885003397,1.98909336,3176.8,3175.8,0.00346693]
[1768885003604,0.93074997,3176.7,3175.8,0.00346693]
[1768885003805,0.93074997,3176.6,3175.8,0.00346693]
[1768885004003,1.37402299,3176.8,3175.8,0.00346693]
[1768885004203,0.93073778,3176.7,3175.8,0.00346693]
[1768885004404,0.3156796,3176.8,3175.8,0.00346693]
[1768885004604,1.24641534,3176.7,3175.8,0.00346693]
[1768885004805,0.93073574,3176.6,3175.8,1.06181032]
[1768885004999,0.3156796,3177.0,3175.8,1.06181032]
[1768885005195,0.3156796,3176.5,3175.8,0.00346693]
[1768885006318,0.92863396,3176.4,3175.8,0.00346693]
[1768885006516,0.3156796,3176.5,3175.8,0.00346693]
[1768885006718,0.92852068,3176.4,3175.8,0.00346693]
[1768885006922,0.3156796,3176.5,3175.8,0.00346693]
[1768885007220,0.92852009,3176.4,3175.8,0.00346693]
[1768885007413,0.3156796,3176.5,3175.8,0.00346693]
[1768885007611,0.92841827,3176.4,3175.8,0.00346693]
[1768885007815,0.3156796,3176.5,3175.8,0.00346693]
[1768885008017,0.92842149,3176.4,3175.8,0.00346693]
[1768885008217,0.3156796,3176.5,3175.8,0.00346693]
[1768885013531,0.29973464,3176.9,3175.8,0.00346693]
[1768885013827,1.22769187,3176.8,3175.8,0.00346693]
[1768885014131,1.22769187,3176.7,3175.8,0.00346693]
[1768885014337,0.92795723,3176.6,3175.8,0.00346693]
[1768885014630,0.29973464,3176.5,3175.8,0.00346693]
[1768885021032,0.29973464,3176.5,3175.0,3.151]
[1768885021033,0.29973464,3176.3,3174.5,1.05857316]
[1768885021229,1.10388433,3176.6,3174.5,2.886]
[1768885021230,0.29973464,3176.1,3174.5,2.886]
[1768885021427,0.29973464,3175.9,3174.5,40.8]
[1768885021623,0.29973464,3175.9,3174.5,1.05857316]
[1768885022028,0.29973464,3176.3,3174.9,1.05857316]
[1768885022231,0.92737504,3176.2,3175.3,1.05857316]
[1768885022428,1.10388433,3176.6,3175.3,1.05857316]
[1768885022626,0.92723142,3176.5,3175.3,1.05857316]
[1768885022819,0.92723142,3176.4,3175.3,1.05857316]
[1768885023025,0.92723142,3176.3,3175.3,1.05857316]
[1768885023220,0.29973464,3176.6,3175.3,1.05857316]
[1768885023425,0.29973464,3176.4,3174.6,0.15759]
[1768885023633,0.29973464,3176.2,3174.8,1.05857316]
[1768885024537,0.29973464,3176.6,3174.8,1.05857316]
[1768885024834,1.22679898,3176.5,3174.8,1.05857316]
[1768885025137,0.92706434,3176.4,3174.8,1.05857316]
[1768885026421,1.22679898,3176.4,3174.8,1.05857316]
[1768885026626,0.92706434,3176.3,3174.8,1.05857316]
[1768885026826,0.29973464,3176.4,3174.8,1.05857316]
[1768885027025,0.9269874,3176.3,3174.8,1.05857316]
[1768885027238,0.29973464,3176.4,3174.8,1.05857316]
[1768885027439,0.92695844,3176.3,3174.8,1.05857316]
[1768885027633,0.29973464,3176.4,3174.8,1.05857316]
[1768885027831,0.92713233,3176.3,3174.8,1.05857316]
[1768885028134,0.29973464,3176.4,3174.8,1.05857316]
[1768885029340,0.92753947,3176.3,3174.8,1.05857316]
[1768885029544,0.29973464,3176.4,3174.8,1.05857316]
[1768885029839,0.92753955,3176.3,3174.8,1.05857316]
[1768885030141,0.29973464,3176.4,3174.8,1.05857316]
[1768885030338,0.9275536,3176.3,3174.8,1.05857316]
[1768885030544,0.29973464,3176.4,3174.8,1.05857316]
[1768885030741,0.92769437,3176.3,3174.8,1.05857316]
[1768885031040,0.29973464,3176.4,3174.8,1.05857316]
[1768885031242,0.92769469,3176.3,3175.2,1.05857316]
[1768885031442,0.29973464,3176.4,3175.3,2.905]
[1768885031637,0.92783139,3176.3,3175.3,2.905]
[1768885031840,0.29973464,3176.4,3175.3,2.905]
[1768885032037,0.92784438,3176.3,3175.3,2.905]
[1768885032342,0.29973464,3176.4,3175.3,2.905]
[1768885032534,0.9280623,3176.3,3175.3,2.905]
[1768885032838,0.29973464,3176.4,3175.3,2.905]
[1768885033032,1.10388433,3176.7,3175.3,2.905]
[1768885033033,1.22779605,3176.3,3175.3,2.905]
[1768885033229,0.29973464,3176.3,3175.3,2.905]
[1768885036341,1.40361897,3176.7,3175.3,2.905]
[1768885036644,1.22091153,3176.6,3175.3,2.905]
[1768885036846,1.22091153,3176.5,3175.3,2.905]
[1768885037147,0.92117689,3176.4,3175.3,2.905]
[1768885037346,0.92117689,3176.3,3175.3,2.905]
[1768885037534,2.79773464,3176.5,3175.3,2.905]
[1768885037739,1.22083228,3176.4,3175.3,2.905]
[1768885038040,0.92109764,3176.3,3175.3,2.905]
[1768885041139,0.29973464,3176.4,3175.3,2.905]
[1768885041341,0.92117857,3176.3,3175.3,2.905]
[1768885041543,2.498,3176.5,3175.5,1.05857316]
[1768885043149,0.22793354,3176.7,3175.5,1.05857316]
[1768885043343,0.92137515,3176.6,3175.5,1.05857316]
[1768885043543,0.22793354,3176.7,3175.5,1.05857316]
[1768885043748,1.14938884,3176.6,3175.3,2.905]
[1768885044049,0.9214553,3176.5,3175.3,2.905]
[1768885044353,0.22793354,3176.6,3175.3,2.905]
[1768885044537,0.92143874,3176.5,3175.3,2.905]
[1768885044739,0.22793354,3176.6,3175.3,2.905]
[1768885044932,0.92143874,3176.5,3175.3,2.905]
[1768885045140,0.22793354,3176.6,3175.3,2.905]
[1768885045341,0.92143916,3176.5,3175.3,2.905]
[1768885045543,0.22793354,3176.6,3175.3,2.905]
[1768885045750,0.92144494,3176.5,3175.3,2.905]
[1768885045952,0.22793354,3176.6,3175.3,2.905]
[1768885046150,0.92144558,3176.5,3175.3,2.905]
[1768885046350,0.22793354,3176.6,3175.3,2.905]
[1768885046546,0.92145152,3176.5,3175.3,2.905]
[1768885046745,0.22793354,3176.6,3175.3,2.905]
[1768885046951,0.92145112,3176.5,3175.5,1.05857316]
[1768885047155,0.22793354,3176.6,3175.5,1.05857316]
[1768885048745,2.498,3176.8,3175.5,1.05857316]
[1768885048945,0.92154953,3176.7,3175.9,1.05857316]
[1768885049249,0.92154953,3176.6,3175.9,1.05857316]
[1768885049455,2.498,3176.9,3175.9,1.05857316]
[1768885049656,0.92149791,3176.8,3175.9,1.05857316]
[1768885049964,0.92149791,3176.7,3175.9,1.05857316]
[1768885050254,0.92149791,3176.6,3175.9,1.05857316]
[1768885050459,2.72593354,3176.9,3175.9,1.05857316]
[1768885050649,0.91767037,3176.8,3175.9,1.05857316]
[1768885050851,0.91767037,3176.7,3175.9,1.05857316]
[1768885051059,2.72593354,3176.9,3175.9,1.05857316]
[1768885051354,0.91767374,3176.8,3175.9,1.05857316]
[1768885051555,0.91767374,3176.7,3175.9,1.05857316]
[1768885051758,2.72593354,3176.9,3175.9,1.05857316]
[1768885052054,0.91763343,3176.8,3175.9,1.05857316]
[1768885052256,0.91763343,3176.7,3175.9,1.05857316]
[1768885052456,2.72593354,3176.9,3175.9,1.05857316]
[1768885052657,0.91762919,3176.8,3175.9,1.05857316]
[1768885052954,0.91762919,3176.7,3175.9,1.05857316]
[1768885053151,2.72593354,3176.9,3175.9,1.05857316]
[1768885053359,0.9166209,3176.8,3175.9,1.05857316]
[1768885053557,2.72593354,3176.9,3175.9,1.05857316]
[1768885053758,0.91662191,3176.8,3175.9,1.05857316]
[1768885053961,2.72593354,3176.9,3175.9,1.05857316]
[1768885054154,0.91665439,3176.8,3175.9,1.05857316]
[1768885054355,2.72593354,3176.9,3175.9,1.05857316]